fUSD/lending_fUSD_20240203
["ID","MTS","AMOUNT","RATE_DAILY","PERIOD"]
[313220780,1706967067884,-2168.24,0.00028839,2]
[313220781,1706967067893,-1359.55,0.00028839,2]
[313220782,1706967067902,-1000.0,0.0002885,7]
[313220783,1706967067912,-1000.0,0.0002885,7]
[313220784,1706967067922,-1000.0,0.0002885,7]
[313220785,1706967067931,-1000.0,0.0002885,7]
[313220786,1706967067940,-1000.0,0.0002885,7]
[313220787,1706967067949,-151.42,0.00028859,2]
[313220788,1706967067959,-19195.47966383,0.000289,2]
[313220789,1706967067968,-150.0,0.00028954,2]
[313220790,1706967067977,-878.14248307,0.00028983,2]
[313220791,1706967067986,-697.47,0.00028983,2]
[313220792,1706967067996,-741.29,0.00028983,2]
[313220793,1706967068005,-2168.24,0.00028983,2]
[313220794,1706967068014,-1359.55,0.00028983,2]
[313220795,1706967068023,-845.14393948,0.00028985,2]
[313220796,1706967068032,-905.86713363,0.00028985,2]
[313220797,1706967068042,-200.0,0.00029,2]
[313220798,1706967068051,-2930.73,0.00029,2]
[313220799,1706967068060,-2000.0,0.00029,2]
[313220800,1706967068069,-157.48249988,0.00029,2]
[313220801,1706967068079,-327.4424305,0.00029,2]
[313220802,1706967068088,-21217.70562247,0.00029,15]
[313220803,1706967068097,-454.0,0.00029,17]
[313220804,1706967068106,-150.0,0.00029041,2]
[313220805,1706967068116,-151.42,0.00029041,2]
[313220806,1706967068125,-505.79,0.00029095,2]
[313220807,1706967068134,-718.44456509,0.00029096,2]
[313220808,1706967068144,-583.60337269,0.00029096,2]
[313220809,1706967068153,-600.3,0.00029096,2]
[313220810,1706967068162,-1094.46232956,0.00029096,2]
[313220811,1706967068172,-1455.6859385,0.00029096,2]
[313220812,1706967068182,-597.45,0.00029096,2]
[313220813,1706967068191,-8496.52742327,0.00029096,2]
[313220814,1706967068201,-1626.6459998,0.00029096,2]
[313220815,1706967068210,-784.58326257,0.00029096,2]
[313220816,1706967068220,-564.41470494,0.00029096,2]
[313220817,1706967068230,-764.72,0.00029096,2]
[313220818,1706967068239,-1009.11391054,0.00029096,2]
[313220819,1706967068249,-699.34680184,0.00029096,2]
[313220820,1706967068258,-562.95082981,0.00029096,2]
[313220821,1706967068267,-8524.84451433,0.00029096,2]
[313220822,1706967068277,-520.9798732,0.00029096,2]
[313220823,1706967068286,-467.13460457,0.00029096,2]
[313220824,1706967068295,-541.65843034,0.00029096,2]
[313220825,1706967068305,-607.76924872,0.00029096,2]
[313220826,1706967068314,-1233.82716272,0.00029096,2]
[313220827,1706967068324,-690.15551863,0.00029096,2]
[313220828,1706967068333,-1066.20309192,0.00029096,2]
[313220829,1706967068342,-175.84,0.00029096,2]
[313220830,1706967068351,-1533.75,0.00029096,2]
[313220831,1706967068362,-1940.01605241,0.00029096,2]
[313220832,1706967068371,-704.36766528,0.00029096,2]
[313220833,1706967068380,-804.39326785,0.00029096,2]
[313220834,1706967068390,-1502.68966706,0.00029096,2]
[313220835,1706967068400,-1755.94602927,0.00029096,2]
[313220836,1706967068409,-647.6184734,0.00029096,2]
[313220837,1706967068420,-1885.2602,0.00029096,2]
[313220838,1706967068429,-722.2714784,0.00029096,2]
[313220839,1706967068439,-152.57148147,0.00029105,2]
[313220840,1706967068448,-166.51155624,0.00029113,2]
[313220841,1706967068458,-741.29,0.00029128,2]
[313220842,1706967068470,-2168.24,0.00029128,2]
[313220843,1706967068480,-1359.55,0.00029128,2]
[313220844,1706967068490,-155.55,0.00029148,2]
[313220845,1706967068499,-299.27779395,0.00029196,2]
[313220846,1706967068509,-151.42,0.00029224,2]
[313220847,1706967068519,-400.0,0.0002927,2]
[313220848,1706967068528,-741.29,0.00029272,2]
[313220849,1706967068550,-2168.24,0.00029272,2]
[313220850,1706967068560,-1359.55,0.00029272,2]
[313220851,1706967068570,-145610.38694948,0.00029284,7]
[313220852,1706967068579,-178.72334765,0.00029284,7]
[313220853,1706967068589,-151.42,0.00029406,2]
[313220854,1706967068598,-741.29,0.00029416,2]
[313220855,1706967068609,-2168.24,0.00029416,2]
[313220856,1706967068618,-1359.55,0.00029416,2]
[313220857,1706967068628,-153.82890557,0.00029438,2]
[313220858,1706967068638,-365.85725162,0.000295,2]
[313220859,1706967068648,-302.63735676,0.000295,3]
[313220860,1706967068657,-454.0,0.000295,18]
[313220861,1706967068666,-741.29,0.0002956,2]
[313220862,1706967068676,-2168.24,0.0002956,2]
[313220863,1706967068685,-1359.55,0.0002956,2]
[313220864,1706967068695,-167.28000796,0.00029589,2]
[313220865,1706967068705,-151.42,0.00029589,2]
[313220866,1706967068714,-75000.0,0.00029616,3]
[313220867,1706967068724,-299.27779395,0.00029669,2]
[313220868,1706967068735,-741.29,0.00029704,2]
[313220869,1706967068746,-2168.24,0.00029704,2]
[313220870,1706967068755,-1359.55,0.00029704,2]
[313220871,1706967068764,-152.57148147,0.00029727,2]
[313220872,1706967068773,-1000.0,0.00029752,7]
[313220873,1706967068783,-1000.0,0.00029752,7]
[313220874,1706967068792,-1000.0,0.00029752,7]
[313220875,1706967068802,-1000.0,0.00029752,7]
[313220876,1706967068811,-1000.0,0.00029752,7]
[313220877,1706967068820,-1000.0,0.00029752,7]
[313220878,1706967068830,-1000.0,0.00029752,7]
[313220879,1706967068840,-1000.0,0.00029752,7]
[313220880,1706967068850,-1000.0,0.00029752,7]
[313220881,1706967068860,-151.42,0.00029772,2]
[313220882,1706967068870,-338.02427443,0.000298,2]
[313220883,1706967068880,-741.29,0.00029849,2]
[313220884,1706967068890,-2168.24,0.00029849,2]
[313220885,1706967068899,-1359.55,0.00029849,2]
[313220886,1706967068909,-341.74,0.00029863,2]
[313220887,1706967068920,-341.74,0.00029863,2]
[313220888,1706967068930,-22379.17792397,0.000299,2]
[313220889,1706967068939,-151.42,0.00029954,2]
[313220890,1706967068949,-4667.17726896,0.0002996,2]
[313220891,1706967068959,-741.29,0.00029993,2]
[313220892,1706967068968,-2168.24,0.00029993,2]
[313220893,1706967068978,-1359.55,0.00029993,2]
[313220894,1706967068989,-333.72121839,0.0003,30]
[313220895,1706967069001,-155.0,0.0003,2]
[313220896,1706967069012,-9672.2676258,0.0003,2]
[313220897,1706967069022,-694.31782489,0.0003,2]
[313220898,1706967069032,-584.6826991,0.0003,2]
[313220899,1706967069043,-260.17750548,0.0003,4]
[313220900,1706967069054,-363.96614016,0.0003,4]
[313220901,1706967069065,-175.75806944,0.0003,4]
[313220902,1706967069075,-155.5477434,0.0003,4]
[313220903,1706967069086,-1817.76720888,0.0003,4]
[313220904,1706967069095,-156.06061293,0.0003,4]
[313220905,1706967069104,-817.38278888,0.0003,4]
[313220906,1706967069115,-204.14713236,0.0003,4]
[313220907,1706967069125,-156.7657065,0.0003,4]
[313220908,1706967069135,-210.42072593,0.0003,4]
[313220909,1706967069144,-156.26813838,0.0003,4]
[313220910,1706967069153,-914.34025217,0.0003,4]
[313220911,1706967069163,-470.28616995,0.0003,4]
[313220912,1706967069173,-1587.96433641,0.0003,4]
[313220913,1706967069183,-3356.94617256,0.0003,30]
[313220914,1706967069193,-153.238,0.0003,7]
[313220915,1706967069202,-12225.59757735,0.0003,4]
[313220916,1706967069212,-2206.50114174,0.0003,5]
[313220917,1706967069221,-8874.13470215,0.0003,4]
[313220918,1706967069231,-300.0,0.0003,2]
[313220919,1706967069240,-741.00197161,0.0003,2]
[313220920,1706967069250,-325.48384017,0.0003,2]
[313220921,1706967069260,-161.11267929,0.0003,4]
[313220922,1706967069270,-2649.08998213,0.0003,4]
[313220923,1706967069279,-359.18098467,0.0003,2]
[313220924,1706967069329,-1000.0,0.0003,2]
[313220925,1706967069339,-8956.84,0.0003,3]
[313220926,1706967069348,-2000.0,0.0003,2]
[313220927,1706967069358,-312.74470904,0.0003,2]
[313220928,1706967069367,-451.91910695,0.0003,2]
[313220929,1706967069377,-11923.988718,0.0003,2]
[313220930,1706967069386,-454.0,0.0003,18]
[313220931,1706967069396,-2450.0,0.0003,3]
[313220932,1706967069405,-3000.0,0.0003,2]
[313220933,1706967069415,-5000.0,0.0003,2]
[313220934,1706967069425,-500.0,0.0003,2]
[313220935,1706967069435,-27891.611431,0.0003,2]
[313220936,1706967069445,-152.22,0.0003,2]
[313220937,1706967069455,-152.22,0.0003,2]
[313220938,1706967069465,-152.22,0.0003,2]
[313220939,1706967069478,-152.22,0.0003,2]
[313220940,1706967069488,-152.22,0.0003,2]
[313220941,1706967069499,-152.22,0.0003,2]
[313220942,1706967069508,-152.22,0.0003,2]
[313220943,1706967069518,-152.22,0.0003,2]
[313220944,1706967069527,-152.22,0.0003,2]
[313220945,1706967069537,-150.0,0.0003,2]
[313220946,1706967069548,-200.0,0.0003,2]
[313220947,1706967069557,-3000.0,0.0003,2]
[313220948,1706967069567,-3000.0,0.0003,2]
[313220949,1706967069576,-3000.0,0.0003,2]
[313220950,1706967069586,-3000.0,0.0003,2]
[313220951,1706967069595,-3000.0,0.0003,2]
[313220952,1706967069605,-3000.0,0.0003,2]
[313220953,1706967069735,-3000.0,0.0003,2]
[313220954,1706967069755,-3000.0,0.0003,2]
[313220955,1706967069765,-3000.0,0.0003,2]
[313220956,1706967069774,-3000.0,0.0003,2]
[313220957,1706967069784,-3000.0,0.0003,2]
[313220958,1706967069794,-3000.0,0.0003,2]
[313220959,1706967069804,-205.0,0.0003,2]
[313220960,1706967069814,-1000.0,0.0003,2]
[313220961,1706967069823,-1000.0,0.0003,2]
[313220962,1706967069833,-3000.0,0.0003001,2]
[313220963,1706967069843,-153.82890557,0.0003001,7]
[313220964,1706967069853,-3000.0,0.0003002,2]
[313220965,1706967069863,-3000.0,0.0003003,2]
[313220966,1706967069873,-8135.16,0.00030033,2]
[313220967,1706967069882,-3000.0,0.0003004,2]
[313220968,1706967069892,-555.57,0.0003005,2]
[313220969,1706967069901,-3000.0,0.0003005,2]
[313220970,1706967069911,-555.53,0.00030052,2]
[313220971,1706967069921,-3000.0,0.0003006,2]
[313220972,1706967069930,-3000.0,0.0003007,2]
[313220973,1706967069940,-3000.0,0.0003008,2]
[313220974,1706967069949,-3000.0,0.0003009,2]
[313220975,1706967069958,-3000.0,0.000301,2]
[313220976,1706967069967,-1500.0,0.000301,2]
[313220977,1706967069977,-1000.0,0.000301,2]
[313220978,1706967069986,-3000.0,0.0003011,2]
[313220979,1706967069996,-3000.0,0.0003012,2]
[313220980,1706967070005,-3000.0,0.0003013,2]
[313220981,1706967070015,-500.0,0.00030136,20]
[313220982,1706967070024,-322.77772447,0.00030136,20]
[313220983,1706967070034,-741.29,0.00030137,2]
[313220984,1706967070044,-2168.24,0.00030137,2]
[313220985,1706967070053,-1359.55,0.00030137,2]
[313220986,1706967070063,-150.0,0.00030137,2]
[313220987,1706967070073,-155.0,0.00030137,2]
[313220988,1706967070083,-151.42,0.00030137,2]
[313220989,1706967070092,-3000.0,0.0003014,2]
[313220990,1706967070101,-3000.0,0.0003015,2]
[313220991,1706967070111,-3000.0,0.0003016,2]
[313220992,1706967070120,-3000.0,0.0003017,2]
[313220993,1706967070130,-3220.721869,0.0003018,2]
[313220994,1706967070140,-1000.0,0.000302,2]
[313220995,1706967070150,-1218.296063,0.000303,3]
[313220996,1706967070159,-152.57148147,0.00030349,2]
[313220997,1706967070169,-454.0,0.000305,19]
[313220998,1706967070178,-151.03304887,0.00030512,2]
[313220999,1706967070188,-153.82890557,0.00030563,7]
[313221000,1706967070198,-2326.75895821,0.00030603,3]
[313221001,1706967070208,-341.74,0.00030685,2]
[313221002,1706967070218,-150.0,0.00030714,2]
[313221003,1706967070227,-1000.0,0.00030882,2]
[313221004,1706967070236,-15971.15623027,0.000309,2]
[313221005,1706967070246,-954.44873093,0.00030962,7]
[313221006,1706967070255,-152.57148147,0.00030971,2]
[313221007,1706967070264,-209.549336,0.00031,4]
[313221008,1706967070273,-371.12813485,0.00031,2]
[313221009,1706967070282,-7160.97048263,0.00031,7]
[313221010,1706967070291,-1000.0,0.00031,2]
[313221011,1706967070300,-3432.62216155,0.00031,5]
[313221012,1706967070310,-2000.0,0.00031,2]
[313221013,1706967070319,-7113.02899771,0.00031,2]
[313221014,1706967070328,-454.0,0.00031,19]
[313221015,1706967070337,-1995.02,0.00031,2]
[313221016,1706967070346,-307.376868,0.00031,2]
[313221017,1706967070355,-205.0,0.00031033,14]
[313221018,1706967070365,-191.99517108,0.00031104,7]
[313221019,1706967070374,-299.30337904,0.00031104,7]
[313221020,1706967070384,-1881.93390897,0.00031104,7]
[313221021,1706967070394,-339.43959323,0.00031104,7]
[313221022,1706967070403,-634.09219224,0.00031104,7]
[313221023,1706967070413,-997.55717314,0.00031104,7]
[313221024,1706967070422,-901.09148137,0.00031104,7]
[313221025,1706967070432,-777.44559544,0.00031104,7]
[313221026,1706967070442,-809.31404677,0.00031104,7]
[313221027,1706967070451,-339.6547556,0.00031104,7]
[313221028,1706967070460,-515.21588833,0.00031104,7]
[313221029,1706967070472,-639.10678343,0.00031104,7]
[313221030,1706967070482,-513.53754812,0.00031104,7]
[313221031,1706967070492,-256.76877406,0.00031104,7]
[313221032,1706967070501,-234.79059461,0.00031104,7]
[313221033,1706967070510,-432.94667104,0.00031104,7]
[313221034,1706967070519,-854.25963073,0.00031104,7]
[313221035,1706967070529,-1044.56254918,0.00031104,7]
[313221036,1706967070539,-856.03686608,0.00031104,7]
[313221037,1706967070549,-928.49525474,0.00031104,7]
[313221038,1706967070558,-299.27779395,0.00031132,7]
[313221039,1706967070567,-150.0,0.00031291,2]
[313221040,1706967070576,-29673.32649991,0.000314,30]
[313221041,1706967070585,-454.0,0.000315,20]
[313221042,1706967070595,-155.0,0.00031507,2]
[313221043,1706967070604,-152.57148147,0.00031593,2]
[313221044,1706967070614,-355.51,0.00031644,2]
[313221045,1706967070623,-180.0,0.00031644,2]
[313221046,1706967070633,-1000.0,0.00031765,2]
[313221047,1706967070643,-4016.66256345,0.00031797,2]
[313221048,1706967070654,-183.09987742,0.00031799,2]
[313221049,1706967070663,-236.75454593,0.00031799,2]
[313221050,1706967070674,-309.52979157,0.000318,10]
[313221051,1706967070684,-903.45125164,0.000318,2]
[313221052,1706967070693,-394322.664123,0.000318,3]
[313221053,1706967070702,-158.70021785,0.00031866,7]
[313221054,1706967070712,-150.0,0.00031867,2]
[313221055,1706967070721,-155.52535822,0.00032,4]
[313221056,1706967070730,-13198.54117764,0.00032,4]
[313221057,1706967070741,-1966.46892925,0.00032,2]
[313221058,1706967070751,-130110.35157178,0.00032,2]
[313221059,1706967070763,-1603.49721264,0.00032,2]
[313221060,1706967070772,-2000.0,0.00032,2]
[313221061,1706967070783,-454.0,0.00032,20]
[313221062,1706967070793,-2500.0,0.00032,3]
[313221063,1706967070802,-152.57148147,0.00032215,2]
[313221064,1706967070813,-155.55,0.00032221,2]
[313221065,1706967070824,-153.82890557,0.00032281,7]
[313221066,1706967070833,-207.0,0.0003235,16]
[313221067,1706967070843,-150.0,0.00032444,2]
[313221068,1706967070853,-151.03304887,0.00032456,2]
[313221069,1706967070863,-202.67568093,0.000325,2]
[313221070,1706967070873,-469.38202,0.000325,21]
[313221071,1706967070883,-1995.02,0.00032635,2]
[313221072,1706967070893,-1000.0,0.00032647,2]
[313221073,1706967070903,-1071.78554895,0.000327,2]
[313221074,1706967070913,-299.27779395,0.00032779,7]
[313221075,1706967070924,-64505.21367477,0.0003278,5]
[313221076,1706967070933,-555.57,0.00032782,2]
[313221077,1706967070943,-555.53,0.00032784,2]
[313221078,1706967070952,-947.22,0.00032794,7]
[313221079,1706967070963,-16066.6502538,0.00032797,2]
[313221080,1706967070973,-183.09987742,0.00032799,2]
[313221081,1706967070982,-236.75454593,0.00032799,2]
[313221082,1706967070991,-183.09987742,0.00032799,2]
[313221083,1706967071000,-236.75454593,0.00032799,2]
[313221084,1706967071009,-630020.37716678,0.000328,2]
[313221085,1706967071019,-656510.07809216,0.000328,2]
[313221086,1706967071030,-882734.9893535,0.000328,2]
[313221087,1706967071040,-150.1,0.000328,2]
[313221088,1706967071050,-152.57148147,0.00032837,2]
[313221089,1706967071059,-4016.66256345,0.00032874,2]
[313221090,1706967071069,-294.14119822,0.00032876,2]
[313221091,1706967071078,-1000.0,0.00032876,2]
[313221092,1706967071088,-567.18759914,0.00032876,2]
[313221093,1706967071099,-225.5793631,0.00032876,2]
[313221094,1706967071108,-218.47902647,0.00032876,2]
[313221095,1706967071118,-213.71237784,0.00032876,2]
[313221096,1706967071127,-250.0,0.00032876,3]
[313221097,1706967071137,-261.95709534,0.00032876,3]
[313221098,1706967071146,-500.0,0.00032877,6]
[313221099,1706967071155,-500.0,0.00032877,6]
[313221100,1706967071165,-500.0,0.00032877,6]
[313221101,1706967071177,-500.0,0.00032877,6]
[313221102,1706967071186,-516.14849234,0.00032877,6]
[313221103,1706967071195,-500.0,0.00032877,6]
[313221104,1706967071204,-523.22738761,0.00032877,6]
[313221105,1706967071214,-150.1,0.00032877,2]
[313221106,1706967071223,-500.0,0.00032877,2]
[313221107,1706967071232,-317.48,0.00032877,2]
[313221108,1706967071242,-84391.72,0.00032877,2]
[313221109,1706967071251,-155.0,0.00032877,2]
[313221110,1706967071260,-6957.45,0.0003288,2]
[313221111,1706967071269,-6957.45,0.0003288,2]
[313221112,1706967071278,-6957.45,0.0003288,2]
[313221113,1706967071287,-6957.45,0.0003288,2]
[313221114,1706967071296,-6957.45,0.0003288,2]
[313221115,1706967071305,-375.0,0.000329,2]
[313221116,1706967071315,-256.0,0.00032925,2]
[313221117,1706967071324,-178.0,0.00032925,2]
[313221118,1706967071334,-2000.0,0.00033,5]
[313221119,1706967071343,-1253.35321442,0.00033,2]
[313221120,1706967071352,-962.16212466,0.00033,2]
[313221121,1706967071362,-1000.0,0.00033,3]
[313221122,1706967071371,-522.85873084,0.00033,15]
[313221123,1706967071381,-2053.82,0.00033,3]
[313221124,1706967071390,-2000.0,0.00033,2]
[313221125,1706967071399,-205.0,0.00033,2]
[313221126,1706967071409,-150.0,0.00033021,2]
[313221127,1706967071418,-954.44873093,0.0003306,7]
[313221128,1706967071428,-153.82890557,0.00033286,7]
[313221129,1706967071438,-500.0,0.00033394,3]
[313221130,1706967071448,-150.1,0.000334,3]
[313221131,1706967071458,-500.0,0.00033403,3]
[313221132,1706967071469,-500.0,0.00033412,3]
[313221133,1706967071480,-500.0,0.00033421,3]
[313221134,1706967071490,-500.0,0.0003343,3]
[313221135,1706967071499,-500.0,0.00033438,3]
[313221136,1706967071509,-500.0,0.00033447,3]
[313221137,1706967071519,-500.0,0.00033456,3]
[313221138,1706967071528,-152.57148147,0.00033459,2]
[313221139,1706967071538,-500.0,0.00033465,3]
[313221140,1706967071548,-500.0,0.00033474,3]
[313221141,1706967071558,-500.0,0.00033482,3]
[313221142,1706967071568,-500.0,0.00033491,3]
[313221143,1706967071577,-730.40595164,0.000335,2]
[313221144,1706967071587,-500.0,0.000335,3]
[313221145,1706967071596,-500.0,0.000335,3]
[313221146,1706967071606,-4007.7,0.000335,2]
[313221147,1706967071615,-4007.7,0.000335,2]
[313221148,1706967071625,-4007.7,0.000335,2]
[313221149,1706967071635,-4007.7,0.000335,2]
[313221150,1706967071645,-4007.7,0.000335,2]
[313221151,1706967071654,-4007.7,0.000335,2]
[313221152,1706967071665,-4007.7,0.000335,2]
[313221153,1706967071675,-4007.7,0.000335,2]
[313221154,1706967071685,-4007.7,0.000335,2]
[313221155,1706967071695,-4007.7,0.000335,2]
[313221156,1706967071705,-4007.7,0.000335,2]
[313221157,1706967071715,-4007.7,0.000335,2]
[313221158,1706967071724,-4007.7,0.000335,2]
[313221159,1706967071734,-4007.7,0.000335,2]
[313221160,1706967071744,-4007.7,0.000335,2]
[313221161,1706967071753,-4007.7,0.000335,2]
[313221162,1706967071763,-4007.7,0.000335,2]
[313221163,1706967071772,-4007.7,0.000335,2]
[313221164,1706967071782,-4007.7,0.000335,2]
[313221165,1706967071791,-4007.7,0.000335,2]
[313221166,1706967071801,-1000.0,0.00033529,2]
[313221167,1706967071811,-150.0,0.00033598,2]
[313221168,1706967071820,-205.0,0.00033667,18]
[313221169,1706967071829,-166.51155624,0.00033926,2]
[313221170,1706967071838,-152.79882538,0.0003393,30]
[313221171,1706967071848,-765.61248238,0.00034,4]
[313221172,1706967071857,-150.0,0.00034,2]
[313221173,1706967071867,-2000.0,0.00034,2]
[313221174,1706967071876,-2550.0,0.00034,3]
[313221175,1706967071886,-152.57148147,0.00034081,2]
[313221176,1706967071895,-150.0,0.00034175,2]
[313221177,1706967071904,-364.06308873,0.000342,2]
[313221178,1706967071913,-155.0,0.00034247,2]
[313221179,1706967071923,-183.09987742,0.00034269,2]
[313221180,1706967071933,-236.75454593,0.00034269,2]
[313221181,1706967071942,-1995.02,0.0003427,2]
[313221182,1706967071952,-153.82890557,0.00034379,7]
[313221183,1706967071961,-1000.0,0.00034412,2]
[313221184,1706967071971,-152.79882539,0.0003443,30]
[313221185,1706967071980,-151.03304887,0.00034524,2]
[313221186,1706967071990,-150.0,0.00034548,10]
[313221187,1706967071999,-152.57148147,0.00034703,2]
[313221188,1706967072009,-150.0,0.00034751,2]
[313221189,1706967072018,-28558.0,0.00034899,2]
[313221190,1706967072028,-9029.73844119,0.000349,4]
[313221191,1706967072037,-1114.57623663,0.000349,10]
[313221192,1706967072047,-7647.31876816,0.000349,2]
[313221193,1706967072056,-7647.31876799,0.000349,2]
[313221194,1706967072066,-7647.31876799,0.000349,2]
[313221195,1706967072076,-7647.31876799,0.000349,2]
[313221196,1706967072086,-7647.31876799,0.000349,2]
[313221197,1706967072095,-7647.31876799,0.000349,2]
[313221198,1706967072106,-7647.31876799,0.000349,2]
[313221199,1706967072115,-7647.31876799,0.000349,2]
[313221200,1706967072125,-1148.454277,0.000349,14]
[313221201,1706967072136,-1000.0,0.0003492,14]
[313221202,1706967072145,-152.79882539,0.0003493,30]
[313221203,1706967072156,-183.09987742,0.00034933,2]
[313221204,1706967072166,-236.75454593,0.00034933,2]
[313221205,1706967072176,-1000.0,0.0003494,14]
[313221206,1706967072185,-954.44873093,0.00034949,7]
[313221207,1706967072195,-1000.0,0.0003496,14]
[313221208,1706967072205,-1000.0,0.0003498,14]
[313221209,1706967072215,-50000.0,0.00035,5]
[313221210,1706967072226,-155.0,0.00035,2]
[313221211,1706967072236,-513.60306723,0.00035,14]
[313221212,1706967072246,-186.52523517,0.00035,4]
[313221213,1706967072255,-3000.0,0.00035,2]
[313221214,1706967072264,-301.60099836,0.00035,4]
[313221215,1706967072274,-236.98730491,0.00035,2]
[313221216,1706967072284,-156.26006338,0.00035,4]
[313221217,1706967072294,-452.56924827,0.00035,4]
[313221218,1706967072304,-15815.76840766,0.00035,7]
[313221219,1706967072313,-455.46118668,0.00035,4]
[313221220,1706967072323,-278.40658063,0.00035,2]
[313221221,1706967072333,-156.95563486,0.00035,4]
[313221222,1706967072343,-301.30905578,0.00035,2]
[313221223,1706967072353,-1000.0,0.00035,5]
[313221224,1706967072363,-1265.14787457,0.00035,4]
[313221225,1706967072373,-300.0,0.00035,2]
[313221226,1706967072383,-1000.0,0.00035,5]
[313221227,1706967072392,-165.0,0.00035,2]
[313221228,1706967072403,-165.0,0.00035,2]
[313221229,1706967072412,-165.0,0.00035,2]
[313221230,1706967072422,-165.0,0.00035,2]
[313221231,1706967072431,-254.14481336,0.00035,4]
[313221232,1706967072442,-600.0,0.00035,2]
[313221233,1706967072452,-276169.77808331,0.00035,4]
[313221234,1706967072462,-12772.17534647,0.00035,4]
[313221235,1706967072475,-2000.0,0.00035,2]
[313221236,1706967072604,-2500.0,0.00035,2]
[313221237,1706967072614,-3805.0,0.00035,10]
[313221238,1706967072624,-239.41754044,0.00035,7]
[313221239,1706967072634,-200.0,0.00035,7]
[313221240,1706967072643,-200.0,0.00035,7]
[313221241,1706967072653,-200.0,0.00035,7]
[313221242,1706967072662,-200.0,0.00035,7]
[313221243,1706967072672,-3000.0,0.00035,11]
[313221244,1706967072682,-1460.36637341,0.00035,2]
[313221245,1706967072691,-1460.36637341,0.00035,2]
[313221246,1706967072701,-1569.11125285,0.00035,2]
[313221247,1706967072712,-1569.11125285,0.00035,2]
[313221248,1706967072721,-1044.9787944,0.00035,2]
[313221249,1706967072731,-1000.0,0.00035,14]
[313221250,1706967072742,-18578.09899957,0.00035,2]
[313221251,1706967072751,-18578.09899957,0.00035,2]
[313221252,1706967072760,-18578.09899957,0.00035,2]
[313221253,1706967072770,-450.0,0.00035,3]
[313221254,1706967072779,-200.0,0.00035,7]
[313221255,1706967072789,-158.0,0.00035,2]
[313221256,1706967072798,-164.0,0.00035,2]
[313221257,1706967072808,-158.02798028,0.00035004,7]
[313221258,1706967072817,-3000.0,0.0003501,11]
[313221259,1706967072826,-5444.144373,0.0003502,11]
[313221260,1706967072836,-184501.44529554,0.0003509,2]
[313221261,1706967072846,-152.22,0.000351,2]
[313221262,1706967072855,-152.22,0.000351,2]
[313221263,1706967072864,-152.22,0.000351,2]
[313221264,1706967072873,-152.22,0.000351,2]
[313221265,1706967072882,-152.22,0.000351,2]
[313221266,1706967072892,-152.22,0.000351,2]
[313221267,1706967072901,-152.22,0.000351,2]
[313221268,1706967072911,-152.22,0.000351,2]
[313221269,1706967072921,-152.22,0.000351,2]
[313221270,1706967072931,-152.22,0.000351,2]
[313221271,1706967072941,-152.22,0.000351,2]
[313221272,1706967072951,-152.22,0.000351,2]
[313221273,1706967072961,-152.22,0.000351,2]
[313221274,1706967072971,-152.22,0.000351,2]
[313221275,1706967072981,-152.22,0.000351,2]
[313221276,1706967072991,-152.22,0.000351,2]
[313221277,1706967073001,-152.22,0.000351,2]
[313221278,1706967073011,-152.22,0.000351,2]
[313221279,1706967073021,-155.55,0.00035293,2]